bitfinex-derivatives/quotes_SOLF0:USTF0_20240920
["timestamp","ask_amount","ask_price","bid_price","bid_amount"]
[1726814783888,3.3286,150.19,150.15,3.3294]
[1726814784292,25.65,150.21,150.11,3.35009458]
[1726814784483,25.65,150.19,150.08,368.65]
[1726814784683,25.65,150.19,150.08,343.0]
[1726814784887,25.65,150.19,150.09,25.65]
[1726814784888,8.2025,150.18,150.09,25.65]
[1726814785088,11.5315,150.18,150.09,25.65]
[1726814785389,8.2025,150.18,150.09,25.65]
[1726814785589,11.5314,150.18,150.09,25.65]
[1726814787391,11.5314,150.18,150.13,3.3297]
[1726814787790,8.2025,150.18,150.11,3.2760453]
[1726814787992,8.2025,150.18,150.09,368.65]
[1726814789198,8.2025,150.18,150.15,3.3293]
[1726814789800,11.5313,150.18,150.14,3.3296]
[1726814791000,287.329,150.17,150.13,3.3298]
[1726814791196,284.0,150.17,150.11,3.31745762]
[1726814791396,284.0,150.17,150.09,368.65]
[1726814792304,287.3291,150.17,150.09,368.65]
[1726814792704,287.3291,150.17,150.12,3.3299]
[1726814792997,3.3293,150.16,150.11,3.34809773]
[1726814793302,284.0,150.17,150.09,368.65]
[1726814793500,284.0,150.17,150.11,25.65]
[1726814793703,284.0,150.17,150.16,3.3292]
[1726814794002,284.0,150.17,150.11,371.89984956]
[1726814794302,284.0,150.17,150.15,3.3292]
[1726814799102,284.0,150.17,150.14,3.3296]
[1726814801404,284.0,150.17,150.11,19.23984956]
[1726814802603,284.0,150.17,150.15,3.3293]
[1726814803006,284.0,150.17,150.11,19.23984956]
[1726814803805,284.0,150.17,150.15,3.3293]
[1726814805705,284.0,150.17,150.14,3.3296]
[1726814806109,284.0,150.17,150.11,19.23984956]
[1726814806811,287.3292,150.17,150.13,3.3298]
[1726814807009,284.0,150.17,150.11,19.23984956]
[1726814807413,284.0,150.17,150.14,3.3297]
[1726814808316,284.0,150.17,150.11,19.23984956]
[1726814809518,284.0,150.17,150.14,3.3296]
[1726814810517,299.99,150.17,150.09,15.99]
[1726814810720,284.0,150.17,150.09,15.99]
[1726814811516,284.0,150.17,150.09,358.99]
[1726814811820,287.3291,150.17,150.13,3.3297]
[1726814812414,284.0,150.17,150.11,15.99]
[1726814812617,284.0,150.17,150.14,15.99]
[1726814812810,284.0,150.17,150.09,343.0]
[1726814813118,284.0,150.17,150.14,3.3297]
[1726814815317,284.0,150.17,150.12,3.3312237]
[1726814815622,284.0,150.17,150.1,15.99]
[1726814816017,284.0,150.17,150.1,19.30756841]
[1726814816513,287.329,150.17,150.1,19.30756841]
[1726814818217,287.329,150.17,150.14,3.3297]
[1726814819423,287.329,150.17,150.1,19.30756841]
[1726814819614,287.329,150.17,150.1,3.31756841]
[1726814819819,3.3293,150.16,150.09,343.0]
[1726814820019,284.0,150.17,150.09,346.40927203]
[1726814820522,284.0,150.17,150.13,3.3297]
[1726814821522,287.3291,150.17,150.13,3.3297]
[1726814821827,287.3291,150.17,150.09,346.40927203]
[1726814822022,3.3293,150.16,150.09,346.40927203]
[1726814822222,299.99,150.17,150.09,346.40927203]
[1726814822623,3.3298,150.14,150.09,346.40927203]
[1726814822921,3.3298,150.14,150.1,3.3304]
[1726814823323,3.3295,150.15,150.11,3.3302]
[1726814823524,3.3295,150.15,150.09,3.40927203]
[1726814823826,3.3295,150.15,150.07,358.99]
[1726814824221,3.3295,150.15,150.07,362.33987819]
[1726814824417,3.3295,150.15,150.11,3.3302]
[1726814825916,3.3297,150.14,150.11,3.3302]
[1726814826118,15.99,150.13,150.02,476.24]
[1726814826421,2.6398,150.12,150.04,15.99]
[1726814826626,2.6398,150.12,150.04,19.30223537]
[1726814826829,5.3333,150.11,150.04,19.30223537]
[1726814827425,5.3333,150.11,150.08,3.3309]
[1726814827618,5.3333,150.11,150.02,343.0]
[1726814827823,21.3233,150.11,150.03,6.01294218]
[1726814828024,21.3233,150.11,150.04,15.99]
[1726814828025,5.3333,150.11,150.04,15.99]
[1726814828218,5.3333,150.11,150.05,3.29757799]
[1726814829529,8.6637,150.11,150.07,3.3311]
[1726814829927,5.3333,150.11,150.05,3.29757799]
[1726814830128,15.99,150.1,150.05,3.29757799]
[1726814830328,15.99,150.1,150.02,358.99]
[1726814830628,19.3206,150.1,150.07,3.3312]
[1726814830833,5.3333,150.11,150.07,3.32800149]
[1726814831029,5.3333,150.11,150.1,3.3306]
[1726814831230,2.7852,150.11,150.1,3.3306]
[1726814832336,284.0,150.15,150.1,10.24]
[1726814832527,284.0,150.16,150.12,10.24]
[1726814833229,284.0,150.16,150.14,13.5695]
[1726814833434,296.9761,150.18,150.14,13.5695]
[1726814833937,286.7361,150.18,150.14,3.3295]
[1726814834933,290.0649,150.18,150.14,3.3295]
[1726814835332,286.7361,150.18,150.15,3.3294]
[1726814835528,286.7361,150.18,150.13,3.26991622]
[1726814835529,286.7361,150.18,150.13,15.99]
[1726814835727,286.7361,150.18,150.13,19.32266666]
[1726814836539,286.7361,150.18,150.17,3.329]
[1726814836736,286.7361,150.18,150.13,3.33266666]
[1726814836932,286.7361,150.18,150.15,3.3293]
[1726814837138,286.7361,150.18,150.11,2.8029]
[1726814837332,286.7361,150.18,150.11,6.05762902]
[1726814837535,286.7361,150.18,150.15,3.3293]
[1726814837939,15.99,150.17,150.12,3.31001812]
[1726814838137,15.99,150.17,150.13,3.3297]
[1726814839144,19.3191,150.17,150.13,3.3297]
[1726814839944,15.99,150.17,150.14,3.3297]
[1726814841240,286.7361,150.18,150.12,19.31567226]
[1726814841446,286.7361,150.18,150.12,15.99]
[1726814841842,286.7361,150.18,150.11,3.33544257]
[1726814842144,15.99,150.17,150.09,343.0]
[1726814842542,15.99,150.17,150.09,346.31257431]
[1726814842748,15.99,150.17,150.13,3.3297]
[1726814842941,15.99,150.17,150.09,346.31257431]
[1726814843244,15.99,150.17,150.1,6.00354319]
[1726814843442,15.99,150.17,150.09,346.31257431]
[1726814843640,15.99,150.17,150.1,6.00366745]
[1726814843844,15.99,150.17,150.09,346.31257431]
[1726814843845,15.99,150.17,150.13,3.3298]
[1726814844939,19.319,150.17,150.13,3.3298]
[1726814845140,15.99,150.16,150.11,3.3303]
[1726814846047,15.99,150.16,150.12,3.3301]
[1726814846346,15.99,150.16,150.09,343.0]
[1726814846744,3.3295,150.15,150.11,3.3302]
[1726814846950,299.99,150.16,150.08,3.28581395]
[1726814847250,299.99,150.16,150.06,15.99]
[1726814847444,299.99,150.16,150.07,6.00684797]
[1726814847640,299.99,150.16,150.06,15.99]
[1726814847641,299.99,150.16,150.08,3.25683617]
[1726814847948,299.99,150.16,150.06,15.99]
[1726814848146,299.99,150.16,150.07,6.00690035]
[1726814848343,299.99,150.16,150.08,3.36808421]
[1726814848548,3.3297,150.14,150.1,3.3304]
[1726814848748,299.99,150.16,150.08,19.3389902]
[1726814849149,303.3194,150.16,150.08,19.3389902]
[1726814850052,303.3194,150.16,150.12,3.33]
[1726814850252,284.0,150.16,150.08,19.3389902]
[1726814850950,284.0,150.16,150.13,3.3298]
[1726814851150,284.0,150.16,150.08,362.3389902]
[1726814851344,284.0,150.16,150.1,15.99]
[1726814853148,284.0,150.16,150.13,3.3297]
[1726814853955,10.24,150.15,150.13,3.3297]
[1726814854157,10.24,150.15,150.12,3.3301]
[1726814854353,10.24,150.14,150.08,346.3489902]
[1726814854551,10.24,150.15,150.1,10.24]
[1726814855055,10.24,150.14,150.1,10.24]
[1726814855659,10.24,150.15,150.1,10.24]
[1726814855852,294.24,150.15,150.1,10.24]
[1726814856350,297.5695,150.15,150.08,3.3489902]
[1726814856550,297.5695,150.15,150.1,10.24]
[1726814857257,294.24,150.15,150.12,3.3301]
[1726814857457,294.24,150.15,150.11,10.24]
[1726814857655,294.24,150.15,150.13,3.3298]
[1726814858154,194.52000001,150.15,150.14,13.5697]
[1726814859947,194.52000001,150.15,150.14,19.3197]
[1726814860958,194.52000001,150.15,150.14,3.3297]
[1726814864658,194.52000001,150.15,150.11,149.25]
[1726814865860,194.52000001,150.15,150.14,3.3297]
[1726814878976,325.36800001,150.15,150.14,362.3197]
[1726814879172,287.18930001,150.15,150.14,371.60645283]
[1726814879370,275.79030001,150.15,150.14,371.60645283]
[1726814879570,262.79820001,150.15,150.14,371.60645283]
[1726814879777,257.54270001,150.15,150.14,371.60645283]
[1726814879975,257.54270001,150.15,150.14,372.83513938]
[1726814880374,247.01240001,150.15,150.14,376.12006833]
[1726814880775,236.11460001,150.15,150.14,366.84130884]
[1726814880968,232.63820001,150.15,150.14,366.84130884]
[1726814881175,232.63820001,150.15,150.14,376.19065191]
[1726814881373,217.64420001,150.15,150.14,376.19065191]
[1726814881667,210.89230001,150.15,150.14,376.19065191]
[1726814881867,24.29250001,150.15,150.14,372.83013031]
[1726814882070,240.0,150.26,150.25,3.3272]
[1726814882271,202.0,150.26,150.25,3.3272]
[1726814882672,202.0,150.26,150.25,19.3172]
[1726814882873,202.0,150.26,150.25,22.68105083]
[1726814883074,202.0,150.26,150.25,19.3172]
[1726814883372,202.0,150.26,150.24,3.29859798]
[1726814883578,202.0,150.26,150.23,3.36085453]
[1726814883875,202.0,150.26,150.22,19.28160661]
[1726814884180,202.0,150.26,150.22,22.60930661]
[1726814884374,202.0,150.26,150.22,19.28160661]
[1726814884875,202.0,150.26,150.23,3.3275]
[1726814885179,202.0,150.26,150.24,15.99]
[1726814885375,199.0,150.26,150.24,15.99]
[1726814885580,199.0,150.26,150.24,19.3174]
[1726814885879,199.0,150.26,150.25,10.22]
[1726814886076,199.0,150.26,150.25,13.5472]
[1726814886375,24.95,150.26,150.25,13.5472]
[1726814887874,21.95,150.26,150.25,13.5472]
[1726814888479,21.95,150.26,150.25,16.86944029]
[1726814890779,3.3257,150.32,150.25,13.54224029]
[1726814890980,3.3257,150.32,150.3,10.22]
[1726814891182,93.3257,150.32,150.29,10.22]
[1726814892483,93.3257,150.32,150.27,13.5467]
[1726814892484,103.5457,150.32,150.27,13.5467]
[1726814895586,90.0,150.32,150.27,10.22]
[1726814895777,10.22,150.28,150.23,133.14]
[1726814895984,2.7689,150.27,150.23,143.36]
[1726814896179,2.7689,150.27,150.23,146.6211222]
[1726814896684,10.22,150.24,150.1,453.29462213]
[1726814896883,90.0,150.23,150.19,13.5484]
[1726814897082,90.0,150.22,150.21,10.22]
[1726814897288,90.0,150.22,150.21,13.49842611]
[1726814897481,90.0,150.22,150.2,13.5483]
[1726814897679,90.0,150.22,150.2,16.81505279]
[1726814898286,90.0,150.22,150.2,3.26675279]
[1726814898483,90.0,150.22,150.2,10.22]
[1726814898683,90.0,150.22,150.19,3.32867229]
[1726814898885,100.22,150.21,150.12,348.3077]
[1726814899087,90.0,150.18,150.15,10.22]
[1726814899291,90.0,150.18,150.16,6.72112339]
[1726814899787,90.0,150.18,150.16,3.39192339]
[1726814899988,90.0,150.18,150.17,13.549]
[1726814900692,90.0,150.18,150.16,6.59306023]
[1726814900888,90.0,150.18,150.16,13.5491]
[1726814901085,90.0,150.18,150.16,16.88332096]
[1726814901282,90.0,150.18,150.12,343.0]
[1726814901589,90.0,150.18,150.17,10.22]
[1726814901789,90.0,150.18,150.11,476.16]
[1726814901988,90.0,150.18,150.12,15.99]
[1726814902892,90.0,150.18,150.11,476.16]
[1726814903091,90.0,150.18,150.11,492.15]
[1726814903487,90.0,150.18,150.14,3.3297]
[1726814903689,90.0,150.18,150.11,492.15]
[1726814904390,90.0,150.18,150.13,15.99]
[1726814904895,90.0,150.18,150.14,3.3297]
[1726814905193,90.0,150.18,150.15,3.30536064]
[1726814905394,90.0,150.18,150.14,3.3297]
[1726814906289,90.0,150.18,150.15,3.3295]
[1726814906494,90.0,150.18,150.15,3.29070863]
[1726814906789,90.0,150.18,150.13,15.99]
[1726814907092,90.0,150.18,150.16,3.3292]
[1726814907295,90.0,150.18,150.15,3.28515736]
[1726814907495,90.0,150.18,150.15,3.3294]
[1726814907696,90.0,150.18,150.15,6.66284401]
[1726814908892,90.0,150.18,150.15,19.32344401]
[1726814909088,90.0,150.18,150.17,15.99]
[1726814909393,90.0,150.18,150.17,19.319]
[1726814909797,90.0,150.18,150.17,22.66609748]
[1726814909995,90.0,150.18,150.17,3.34709748]
[1726814910197,90.0,150.18,150.16,3.3291]
[1726814910398,90.0,150.18,150.17,3.27140109]
[1726814910598,90.0,150.18,150.15,19.3194]
[1726814910793,90.0,150.18,150.15,22.68536373]
[1726814910994,90.0,150.18,150.15,3.36596373]
[1726814911193,90.0,150.18,150.15,3.3294]
[1726814911396,90.0,150.18,150.15,6.58581758]
[1726814911595,90.0,150.18,150.17,3.329]
[1726814911999,5.4274,150.2,150.15,3.25641758]
[1726814912193,5.4274,150.2,150.13,358.99]
[1726814913795,5.4274,150.2,150.16,3.3292]
[1726814913995,5.4274,150.2,150.17,3.26439508]
[1726814914191,5.4274,150.2,150.15,15.99]
[1726814914397,5.4274,150.2,150.17,3.3288]
[1726814914597,5.4274,150.2,150.17,3.26739238]
[1726814914799,5.4274,150.2,150.15,15.99]
[1726814915402,5.4274,150.2,150.15,19.32732943]
[1726814915796,5.4274,150.2,150.17,3.329]
[1726814916401,5.4274,150.2,150.16,3.3292]
[1726814916902,5.4274,150.2,150.15,3.33732943]
[1726814917101,5.4274,150.2,150.15,3.3294]
[1726814917301,5.4274,150.2,150.15,6.61700247]
[1726814917596,5.4274,150.2,150.15,3.28760247]
[1726814917597,8.7559,150.2,150.15,3.28760247]
[1726814917801,90.0,150.18,150.15,3.28760247]
[1726814918405,90.0,150.18,150.15,6.61700247]
[1726814919694,90.0,150.18,150.16,3.3292]
[1726814920405,90.0,150.18,150.16,3.28493855]
[1726814923105,90.0,150.18,150.16,3.3292]
[1726814923402,90.0,150.18,150.16,6.72868684]
[1726814923907,90.0,150.18,150.16,16.95868684]
[1726814924807,90.0,150.18,150.17,3.329]
[1726814925210,90.0,150.18,150.16,16.95868684]
[1726814925905,90.0,150.18,150.16,10.23]
[1726814926106,100.23,150.18,150.1,476.2]
[1726814926309,100.23,150.18,150.13,10.23]
[1726814926707,100.23,150.18,150.14,3.3295]
[1726814928205,90.0,150.18,150.17,13.559]
[1726814928508,90.0,150.18,150.17,13.56066876]
[1726814929010,90.0,150.18,150.16,10.23]
[1726814929207,90.0,150.18,150.16,13.54967865]
[1726814930205,90.0,150.18,150.16,16.87887865]
[1726814930404,90.0,150.18,150.16,13.54967865]
[1726814930807,90.0,150.18,150.15,10.23]
[1726814931404,90.0,150.18,150.15,13.5594]
[1726814931612,90.0,150.18,150.15,16.81225525]
[1726814931812,90.0,150.18,150.15,13.48285525]
[1726814932414,90.0,150.18,150.15,10.23]
[1726814932815,10.23,150.17,150.1,343.0]
[1726814933010,10.23,150.16,150.12,10.23]
[1726814933211,13.5594,150.16,150.12,10.23]
[1726814933611,10.23,150.16,150.1,13.5604]
[1726814933813,13.5596,150.15,150.1,10.23]
[1726814934014,10.23,150.15,150.1,10.23]
[1726814934213,10.23,150.16,150.1,10.23]
[1726814935017,13.5593,150.16,150.1,13.5605]
[1726814935216,2.6057,150.17,150.12,10.23]
[1726814935514,16.1649,150.17,150.12,10.23]
[1726814936214,12.8357,150.17,150.12,10.23]
[1726814937316,16.1647,150.17,150.12,13.56]
[1726814937513,16.1647,150.17,150.12,10.23]
[1726814937514,12.8357,150.17,150.12,10.23]
[1726814937718,12.8357,150.17,150.13,3.3299]
[1726814937919,12.8357,150.17,150.09,133.2]
[1726814937920,10.23,150.16,150.09,133.2]
[1726814938120,10.23,150.16,150.1,10.23]
[1726814938419,103.5593,150.16,150.1,13.5603]
[1726814938621,103.5593,150.16,150.1,10.23]
[1726814939016,103.5593,150.16,150.1,13.5604]
[1726814939220,103.5593,150.16,150.1,10.23]
[1726814939421,103.5593,150.16,150.1,13.5604]
[1726814940123,103.5593,150.16,150.11,3.3303]
[1726814940623,10.23,150.14,150.1,3.3305]
[1726814940825,2.5946,150.13,150.1,10.23]
[1726814941118,2.5946,150.13,150.11,13.5603]
[1726814942322,12.8246,150.13,150.04,133.22]
[1726814942525,12.8246,150.13,150.08,10.23]
[1726814942821,12.8246,150.13,150.08,13.60430001]
[1726814943018,2.5946,150.13,150.09,10.23]
[1726814943213,2.5946,150.13,150.09,3.3306]
[1726814943417,2.5946,150.13,150.09,10.23]
[1726814943618,12.8246,150.13,150.09,10.23]
[1726814944124,90.0,150.14,150.12,10.23]
[1726814944919,90.0,150.14,150.11,3.3302]
[1726814945123,90.0,150.14,150.11,10.23]
[1726814945724,90.0,150.14,150.12,3.3301]
[1726814947324,90.0,150.15,150.12,3.3301]
[1726814948324,90.0,150.15,150.13,10.23]
[1726814948520,90.0,150.15,150.12,3.3301]
[1726814948720,90.0,150.15,150.13,3.3298]
[1726814949221,90.0,150.15,150.14,13.5597]
[1726814950319,10.23,150.22,150.14,10.23]
[1726814950518,100.23,150.22,150.17,10.23]
[1726814950722,10.23,150.2,150.1,343.0]
[1726814950920,10.23,150.2,150.16,10.23]
[1726814951526,10.23,150.2,150.15,10.23]
[1726814951721,10.23,150.2,150.1,476.24]
[1726814952027,10.23,150.19,150.15,13.5593]
[1726814952532,10.23,150.2,150.16,13.5592]
[1726814952926,90.0,150.22,150.17,10.23]
[1726814953132,90.0,150.22,150.2,3.3283]
[1726814953331,90.0,150.22,150.18,10.23]
[1726814953531,100.23,150.22,150.17,13.5588]
[1726814953729,100.23,150.22,150.17,10.23]
[1726814954131,10.23,150.21,150.17,10.23]
[1726814954332,10.23,150.19,150.12,5.99674133]
[1726814954631,10.23,150.16,150.11,10.23]
[1726814954832,10.23,150.16,150.11,13.59685697]
[1726814955332,10.23,150.16,150.12,3.3299]
[1726814955726,10.23,150.16,150.11,3.36685697]
[1726814955932,10.23,150.16,150.11,13.59685697]
[1726814956130,90.0,150.15,150.11,10.23]
[1726814956336,90.0,150.14,150.08,6.00174615]
[1726814956527,90.0,150.14,150.1,10.23]
[1726814957123,100.23,150.14,150.07,6.12765269]
[1726814957337,100.23,150.14,150.09,10.23]
[1726814957626,90.0,150.14,150.09,10.23]
[1726814957832,90.0,150.14,150.11,10.23]
[1726814959236,90.0,150.14,150.11,13.5603]
[1726814959924,90.0,150.14,150.12,3.3301]
[1726814960123,90.0,150.14,150.11,10.23]
[1726814960536,90.0,150.14,150.11,13.5603]
[1726814960836,90.0,150.14,150.11,10.23]
[1726814962135,10.23,150.15,150.11,10.23]
[1726814963335,10.23,150.15,150.11,13.5603]
[1726814965830,13.5595,150.15,150.11,3.3303]
[1726814966031,10.23,150.15,150.11,13.5603]
[1726814967330,12.8257,150.18,150.14,10.23]
[1726814967541,2.5957,150.18,150.15,10.23]
[1726814967839,2.5957,150.18,150.15,13.5593]
[1726814968034,92.5957,150.18,150.15,13.5593]
[1726814968738,92.5957,150.18,150.15,10.23]
[1726814968929,92.5957,150.18,150.14,13.5596]
[1726814969630,106.1545,150.18,150.13,3.3298]
[1726814969831,10.23,150.15,150.09,4.52895587]
[1726814970134,10.23,150.15,150.11,10.23]
[1726814970531,13.5594,150.16,150.11,13.5602]
[1726814970840,92.5957,150.18,150.14,10.23]
[1726814971143,92.5957,150.18,150.14,13.5596]
[1726814971544,102.8257,150.18,150.11,6.00029624]
[1726814971737,3.329,150.17,150.13,10.23]
[1726814973239,13.559,150.17,150.13,10.23]
[1726814973842,103.559,150.17,150.13,10.23]
[1726814976447,103.559,150.17,150.13,13.5599]
[1726814977046,93.329,150.17,150.13,13.5599]
[1726814977248,93.329,150.17,150.13,10.23]
[1726814977949,93.329,150.17,150.12,13.5601]
[1726814978151,90.0,150.17,150.12,13.5601]
[1726814979252,93.3292,150.17,150.12,13.5601]
[1726814979550,103.5592,150.17,150.12,13.5601]
[1726814979754,90.0,150.16,150.12,13.5601]
[1726814980050,93.3292,150.16,150.12,13.5601]
[1726814982254,90.0,150.16,150.13,3.3299]
[1726814983246,90.0,150.16,150.12,13.56]
[1726814984352,93.3293,150.16,150.12,13.56]
[1726814984554,90.0,150.16,150.15,10.23]
[1726814984955,90.0,150.16,150.15,13.55012098]
[1726814985150,8.0154,150.29,150.15,10.23]
[1726814985356,10.23,150.25,150.21,10.23]
[1726814985555,3.3275,150.24,150.16,2.6136]
[1726814985755,10.23,150.25,150.21,10.23]
[1726814985950,10.23,150.23,150.16,2.6136]
[1726814986155,10.23,150.22,150.17,10.23]
[1726814986358,96.23,150.22,150.17,10.23]
[1726814987460,3.3282,150.21,150.17,10.23]
[1726814987657,10.23,150.21,150.16,5.94515659]
[1726814987957,10.23,150.21,150.16,16.17515659]
[1726814988156,10.23,150.21,150.16,13.56155659]
[1726814988554,3.3285,150.2,150.15,3.3293]
[1726814988860,10.23,150.2,150.09,2.8194]
[1726814989063,13.5587,150.19,150.14,13.5595]
[1726814989260,13.5587,150.19,150.15,3.37340098]
[1726814989561,13.5587,150.19,150.14,13.5595]
[1726814989862,10.23,150.19,150.15,3.3294]
[1726814990061,99.5584,150.2,150.15,13.62271371]
[1726814990257,86.0,150.2,150.17,10.23]
[1726814990562,3.3278,150.23,150.19,10.23]
[1726814990752,10.23,150.23,150.19,10.23]
[1726814990957,10.23,150.23,150.2,3.3281]
[1726814991156,13.5577,150.23,150.19,10.23]
[1726814991360,10.23,150.23,150.19,10.23]
[1726814991561,10.23,150.22,150.18,13.5586]
[1726814991759,13.5579,150.22,150.18,13.5586]
[1726814994064,10.23,150.22,150.19,3.3286]
[1726814994259,10.23,150.22,150.18,10.23]
[1726814994759,96.23,150.22,150.19,3.3285]
[1726814994962,86.0,150.22,150.19,13.5585]
[1726814995260,86.0,150.22,150.2,10.23]
[1726814996253,10.23,150.21,150.19,3.40558681]
[1726814996458,96.23,150.22,150.19,3.40558681]
[1726814996658,96.23,150.22,150.18,10.23]
[1726814996964,96.23,150.22,150.19,6.66106703]
[1726814997760,96.23,150.22,150.2,3.3282]
[1726814997960,96.23,150.22,150.19,3.33266703]
[1726814998160,86.0,150.21,150.15,345.6937]
[1726814998360,86.0,150.22,150.21,3.3281]
[1726814998664,86.0,150.22,150.21,13.5581]
[1726814998865,86.0,150.22,150.21,3.3281]
[1726814999165,86.0,150.22,150.21,16.84881318]
[1726815002163,86.0,150.22,150.21,3.29071318]
[1726815002365,86.0,150.22,150.15,345.6937]
[1726815002575,86.0,150.22,150.15,348.97189102]
[1726815002767,86.0,150.22,150.2,10.23]
[1726815003566,86.0,150.23,150.21,10.23]
[1726815003773,74.2262,150.23,150.22,10.23]
[1726815003968,3.40334076,150.32,150.22,10.23]
[1726815004171,10.23,150.31,150.26,10.23]
[1726815004371,5.3175,150.33,150.26,13.57476003]
[1726815004372,10.23,150.3,150.26,13.57476003]
[1726815004674,3.3264,150.29,150.26,13.57476003]
[1726815005064,3.3264,150.29,150.26,3.34476003]
[1726815005264,3.3266,150.28,150.23,3.3276]
[1726815005571,10.23,150.29,150.2,133.16]
[1726815005771,10.23,150.28,150.24,10.23]
[1726815005974,3.3266,150.28,150.23,6.60880666]
[1726815006367,3.3266,150.28,150.23,3.28130666]
[1726815006568,3.3266,150.28,150.23,3.3277]
[1726815006768,3.3268,150.27,150.23,3.40410607]
[1726815006970,15.97,150.3,150.21,15.97]
[1726815007166,15.97,150.3,150.22,3.3278]
[1726815007370,15.97,150.3,150.23,3.25834417]
[1726815007673,3.3268,150.28,150.23,3.25834417]
[1726815007867,15.97,150.3,150.23,3.25834417]
[1726815008272,3.3267,150.28,150.21,15.97]
[1726815008772,3.3267,150.28,150.22,3.3278]
[1726815008974,3.3267,150.28,150.23,3.25356889]
[1726815009769,15.97,150.3,150.2,133.16]
[1726815009971,15.97,150.28,150.2,133.16]
[1726815010176,8.1371,150.27,150.2,133.16]
[1726815010372,3.3273,150.25,150.2,136.4883]
[1726815011878,3.3275,150.24,150.2,133.16]
[1726815012482,3.3273,150.25,150.2,133.16]
[1726815012879,3.3273,150.25,150.2,136.4883]
[1726815013283,8.1371,150.27,150.2,133.16]
[1726815013978,11.464,150.27,150.22,3.3277]
[1726815014180,15.97,150.3,150.23,3.40744883]
[1726815014382,15.97,150.3,150.21,15.97]
[1726815014582,3.3268,150.28,150.22,3.3277]
[1726815014782,15.97,150.3,150.23,3.35818611]
[1726815015185,8.2886,150.29,150.23,3.35818611]
[1726815015690,3.3269,150.27,150.23,3.35818611]
[1726815015986,3.3269,150.27,150.23,6.68588611]
[1726815016185,8.2886,150.29,150.23,6.68588611]
[1726815016683,8.2886,150.29,150.23,3.35818611]
[1726815016891,8.2886,150.29,150.21,15.97]
[1726815017286,3.3267,150.28,150.23,3.3275]
[1726815017488,3.3267,150.28,150.24,3.41011168]
[1726815018587,3.3268,150.27,150.24,3.41011168]
[1726815019893,3.3268,150.27,150.22,3.3278]
[1726815020086,15.97,150.3,150.21,15.97]
[1726815020390,15.97,150.34,150.25,15.97]
[1726815020583,8.2478,150.35,150.29,15.97]
[1726815020793,2.7977,150.45,150.33,15.97]
[1726815020992,15.97,150.43,150.33,19.23444988]
[1726815021191,3.3243,150.39,150.33,19.23444988]
[1726815021395,15.97,150.42,150.34,3.3252]
[1726815021891,3.3244,150.39,150.33,19.23444988]
[1726815022487,3.3244,150.39,150.34,3.3251]
[1726815022686,3.324,150.4,150.34,3.3251]
[1726815022888,8.51774722,150.51,150.36,15.97]
[1726815023091,8.51774722,150.51,150.4,19.2938]
[1726815023092,15.97,150.49,150.4,19.2938]